[Event "5th Cesme Open 2017"]
[Site "Cesme"]
[Date "2017.06.16"]
[Round "7.12"]
[White "Morchiashvili, Bachana"]
[Black "Rzayev, Askar Aliakbar"]
[Result "1-0"]
[ECO "E54"]
[WhiteElo "2403"]
[BlackElo "2082"]
[Annotator "RC"]
[PlyCount "91"]
[EventType "swiss"]
[EventCountry "TUR"]
[SourceTitle "playchess.com"]
[Source "ChessBase"]
[SourceQuality "1"]
[TimeControl "5400+30"]

1. d4 {[%emt 0:02:30] ]} Nf6 {[%emt 0:01:00] ]} 2. Nf3 {[%emt 0:00:30] ]} d5 {[%emt 0:00:30] ]} 3. c4 {[%emt 0:00:00] ]]} e6 {[%emt 0:00:30] ]]} 4. Nc3 {[%emt 0:00:00] ]]} Bb4 {[%emt 0:00:30] ]]} 5. e3 {[%emt 0:01:30] ]]} c5 {[%emt 0:00:30] ]]} 6. Bd3 {[%emt 0:00:30] ]]} dxc4 {[%emt 0:01:30] ]]} 7. Bxc4 {[%emt 0:00:30] ]]} cxd4 {[%emt 0:00:00] ]]} 8. exd4 {[%emt 0:00:30] ]} O-O {[%emt 0:00:00] ]]} 9. O-O {[%emt 0:00:00] ]]} b6 {[%emt 0:00:30] ]]} 10. Bg5 {[%emt 0:00:00] ]]} Bxc3 {[%emt 0:00:30] ]]} 11. bxc3 {[%emt 0:01:30] [%clk 1:29] )]} Qc7 {[%emt 0:00:30] %%} 12. Bxf6 {[%emt 0:01:30] %%} gxf6 {[%emt 0:01:30] %%} 13. Bd3 {[%emt 0:17:30] %} Bb7 {[%emt 0:04:30] %%} 14. Re1 {[%emt 0:01:30]} Nd7 {[%emt 0:00:30]} 15. c4 {[%emt 0:14:30]} Qf4 {[%emt 0:03:30]} 16. d5 {[%emt 0:02:30]} Nc5 {[%emt 0:01:30]} 17. Nd4 {[%emt 0:03:30]} Rad8 {[%emt 0:03:30]} 18. Re3 {[%emt 0:02:30]} f5 {[%emt 0:11:30]} 19. Bc2 {[%emt 0:06:30]} Kh8 {[%emt 0:09:30]} 20. Qd2 {[%emt 0:01:30]} Qh6 {[%emt 0:00:30]} 21. Rae1 {[%emt 0:01:30]} Qf6 {[%emt 0:02:30]} 22. Re5 {[%emt 0:19:30]} Nd7 {[%emt 0:01:30]} 23. R5e2 {[%emt 0:00:30]} Nc5 {[%emt 0:00:30]} 24. Re5 {[%emt 0:05:36] kk} Nd7 {[%emt 0:00:30] ]} 25. R5e2 {[%emt 0:00:18] kk} Nc5 {[%emt 0:00:00] 6]} 26. Qf4 {[%emt 0:00:51] k} Rg8 {[%emt 0:01:00] 4 [%clk 0:46:0]} 27. f3 {[%emt 0:10:17] c} exd5 {[%emt 0:09:30] ]} 28. cxd5 {[%emt 0:00:30] c} Bxd5 {[%emt 0:00:30] 8} 29. Nxf5 {[%emt 0:00:30]} Bxa2 {[%emt 0:00:30] 5 [%clk 0:40:0]} 30. Qc1 {[%emt 0:02:59]} Be6 {[%emt 0:06:30]} 31. Ng3 {[%emt 0:00:30]} Nd3 {[%emt 0:01:30]} 32. Bxd3 {[%emt 0:00:40]} Rxd3 {[%emt 0:00:30]} 33. Re5 {[%emt 0:00:00]} Rd5 {[%emt 0:03:30]} 34. Nh5 {[%emt 0:01:09]} Qxf3 {[%emt 0:09:30]} 35. Qb2 {[%emt 0:00:06]} Rxe5 {[%emt 0:02:30]} 36. Qxe5+ {[%emt 0:00:41]} f6 {[%emt 0:00:30]} 37. Qxf6+ {[%emt 0:00:00]} Qxf6 {[%emt 0:00:30]} 38. Nxf6 {[%emt 0:00:04]} Rg6 {[%emt 0:02:30]} 39. Rxe6 {[%emt 0:00:09]} Kg7 {[%emt 0:00:00]} 40. Ne8+ {[%emt 0:01:03]} Kf7 {[%emt 0:01:00]} 41. Rxg6 {[%emt 0:00:30]} Kxg6 {[%emt 0:02:30]} 42. Kf2 {[%emt 0:00:53]} a5 {[%emt 0:05:55]} 43. Nd6 {[%emt 0:02:10]} a4 {[%emt 0:00:25]} 44. Nb5 {[%emt 0:00:07]} Kf5 {[%emt 0:00:55]} 45. Ke3 {[%emt 0:00:28]} Kg4 {[%emt 0:05:18]} 46. Ke4 {[%emt 0:00:07]} 1-0

[Event "5th Cesme Open 2017"]
[Site "Cesme"]
[Date "2017.06.16"]
[Round "7.17"]
[White "Aydincelebi, Kagan"]
[Black "Arat, Ufuk Sezen"]
[Result "0-1"]
[ECO "B13"]
[WhiteElo "1992"]
[BlackElo "2398"]
[Annotator "ChessBase"]
[PlyCount "96"]
[EventType "swiss"]
[EventCountry "TUR"]
[SourceTitle "playchess.com"]
[Source "ChessBase"]
[SourceQuality "1"]
[TimeControl "5400+30"]

1. e4 {[%emt 0:00:30] ]} c6 {[%emt 0:06:00] ]} 2. d4 {[%emt 0:00:00] ]} d5 {[%emt 0:00:30] ]} 3. exd5 {[%emt 0:00:00] ]} cxd5 {[%emt 0:00:00] ]} 4. c4 {[%emt 0:00:00] ]} Nf6 {[%emt 0:00:00] ]} 5. Nc3 {[%emt 0:00:00] ]]} Nc6 {[%emt 0:00:30] ]]} 6. Bg5 {[%emt 0:01:30] ]]} Be6 {[%emt 0:00:00] ]]} 7. Be2 {[%emt 0:00:30] ]]} Qa5 {[%emt 0:00:00] ]]} 8. Bf1 {[%emt 0:00:30] ]]} Qd8 {[%emt 0:00:30] [%clk 1:27]]} 9. Be2 {[%emt 0:02:30] [%} Qa5 {[%emt 0:00:30] [%} 10. Bxf6 {[%emt 0:15:30]} gxf6 {[%emt 0:03:30]} 11. Nf3 {[%emt 0:10:30]} Bh6 {[%emt 0:26:30]} 12. O-O {[%emt 0:04:30]} O-O {[%emt 0:08:30]} 13. c5 {[%emt 0:10:30]} b6 {[%emt 0:06:30]} 14. cxb6 {[%emt 0:00:00]} axb6 {[%emt 0:00:30]} 15. a3 {[%emt 0:01:00]} Qa7 {[%emt 0:02:30]} 16. Bd3 {[%emt 0:02:30] ]} Qd7 {[%emt 0:01:30] ]} 17. h3 {[%emt 0:06:30] ]} Bf5 {[%emt 0:09:30]} 18. Nh4 {[%emt 0:04:30] ]} Bxd3 {[%emt 0:00:30] ]} 19. Qxd3 {[%emt 0:00:30] ]} e6 {[%emt 0:00:30] ]} 20. f4 {[%emt 0:03:30] ]} f5 {[%emt 0:03:30] ]} 21. Kh1 {[%emt 0:03:30] [%clk 0:23] )} Qd8 {[%emt 0:06:30] %} 22. g3 {[%emt 0:09:30] %} Kh8 {[%emt 0:00:30] %} 23. Nf3 {[%emt 0:00:30] %} Na5 {[%emt 0:00:30] %} 24. Rfe1 {[%emt 0:00:30] %} Nc4 {[%emt 0:00:30]} 25. Re2 {[%emt 0:00:30]} Nd6 {[%emt 0:00:30]} 26. Rc2 {[%emt 0:02:30] [%clk 0:17.30]} Rg8 {[%emt 0:02:30]} 27. Kh2 {[%emt 0:04:00]} Qe8 {[%emt 0:00:30]} 28. Ne2 {[%emt 0:00:30]} f6 {[%emt 0:00:30]} 29. Qb3 {[%emt 0:00:36]} Ne4 {[%emt 0:03:43]} 30. Rg1 {[%emt 0:01:36]} Qh5 {[%emt 0:01:05]} 31. Qe3 {[%emt 0:00:51]} Rg6 {[%emt 0:08:29]} 32. Rgc1 {[%emt 0:01:39]} Rag8 {[%emt 0:01:20]} 33. Rc8 {[%emt 0:00:58]} Bf8 {[%emt 0:00:18]} 34. Rg1 {[%emt 0:00:52]} Rh6 {[%emt 0:00:43]} 35. Nh4 {[%emt 0:01:02]} Qf7 {[%emt 0:04:40]} 36. Nf3 {[%emt 0:00:39]} Nd6 {[%emt 0:00:13]} 37. Rc6 {[%emt 0:00:25]} b5 {[%emt 0:00:26]} 38. b3 {[%emt 0:02:53]} Ne4 {[%emt 0:00:11]} 39. a4 {[%emt 0:00:09]} bxa4 {[%emt 0:00:21]} 40. bxa4 {[%emt 0:00:30]} Qh5 {[%emt 0:03:08]} 41. h4 {[%emt 0:06:38]} Bd6 {[%emt 0:00:57]} 42. Rg2 {[%emt 0:02:43]} Qe8 {[%emt 0:00:06]} 43. Qc1 {[%emt 0:00:28]} Qa8 {[%emt 0:00:42]} 44. Nd2 {[%emt 0:00:37]} Ba3 {[%emt 0:00:57]} 45. Qxa3 {[%emt 0:02:05]} Qxc6 {[%emt 0:00:02]} 46. Nxe4 {[%emt 0:00:07]} fxe4 {[%emt 0:00:15]} 47. Nc3 {[%emt 0:00:06]} Rhg6 {[%emt 0:00:17]} 48. a5 {[%emt 0:00:12]} R6g7 {[%emt 0:00:58]} 0-1

[Event "5th Cesme Open 2017"]
[Site "Cesme"]
[Date "2017.06.16"]
[Round "7.20"]
[White "Tuncer, Tuna"]
[Black "Nalbant, Tuna Onat"]
[Result "1/2-1/2"]
[ECO "B51"]
[WhiteElo "2302"]
[BlackElo "1993"]
[Annotator "ChessBase"]
[PlyCount "90"]
[EventType "swiss"]
[EventCountry "TUR"]
[SourceTitle "playchess.com"]
[Source "ChessBase"]
[SourceQuality "1"]
[TimeControl "5400+30"]

1. e4 {[%emt 0:01:30] 3} c5 {[%emt 0:01:00] 3} 2. Nf3 {[%emt 0:00:30] 3} d6 {[%emt 0:00:00] 3} 3. Bb5+ {[%emt 0:00:30] 3} Nd7 {[%emt 0:00:00] 3} 4. O-O {[%emt 0:00:30] 3} a6 {[%emt 0:00:30] 3} 5. Bd3 {[%emt 0:00:00] 33} Ngf6 {[%emt 0:01:30] 33} 6. Re1 {[%emt 0:00:00] 33} e6 {[%emt 0:02:30] 33} 7. c3 {[%emt 0:02:30] [%clk 1:28]5} Be7 {[%emt 0:00:30] %%} 8. Bc2 {[%emt 0:00:30] %%} O-O {[%emt 0:00:30]} 9. d4 {[%emt 0:00:00]} Qc7 {[%emt 0:02:30]} 10. Nbd2 {[%emt 0:00:00]} b5 {[%emt 0:03:30]} 11. Nf1 {[%emt 0:00:30]} Bb7 {[%emt 0:00:30]} 12. Ng3 {[%emt 0:01:30]} Rac8 {[%emt 0:01:30]} 13. Bd3 {[%emt 0:00:30]} Rfe8 {[%emt 0:05:30]} 14. Bd2 {[%emt 0:02:30]} Bf8 {[%emt 0:02:30]} 15. Qe2 {[%emt 0:00:30]} e5 {[%emt 0:02:30]} 16. d5 {[%emt 0:02:30]} c4 {[%emt 0:02:30]} 17. Bc2 {[%emt 0:00:30]} Nc5 {[%emt 0:00:30]} 18. a4 {[%emt 0:02:30]} Rb8 {[%emt 0:06:30]} 19. Ra3 {[%emt 0:12:30]} Bc8 {[%emt 0:05:30]} 20. Rea1 {[%emt 0:05:30]} Nfd7 {[%emt 0:03:30]} 21. Be3 {[%emt 0:15:30]} Nb6 {[%emt 0:02:30]} 22. Nd2 {[%emt 0:01:30] ]} Bd7 {[%emt 0:26:30] ]} 23. axb5 {[%emt 0:09:30] ]} axb5 {[%emt 0:00:30] ]} 24. Qd1 {[%emt 0:02:30] [%clk 0:24]} Nca4 {[%emt 0:05:30] %} 25. R1a2 {[%emt 0:14:30] %} Rec8 {[%emt 0:00:30] % [%clk 0:21:0]} 26. Bxb6 {[%emt 0:05:03]} Rxb6 {[%emt 0:03:30]} 27. Bxa4 {[%emt 0:00:30]} bxa4 {[%emt 0:00:30]} 28. Ngf1 {[%emt 0:00:30]} Qc5 {[%emt 0:04:46]} 29. Qc2 {[%emt 0:04:53]} g6 {[%emt 0:01:22]} 30. Ne3 {[%emt 0:01:27]} Bb5 {[%emt 0:00:46]} 31. Qd1 {[%emt 0:01:52]} Bh6 {[%emt 0:01:46]} 32. Nc2 {[%emt 0:00:08]} Rf8 {[%emt 0:04:14]} 33. Nb4 {[%emt 0:03:49]} Rb7 {[%emt 0:01:21]} 34. Qe2 {[%emt 0:01:07]} f5 {[%emt 0:01:31]} 35. exf5 {[%emt 0:00:07]} gxf5 {[%emt 0:01:30]} 36. Ra1 {[%emt 0:01:05]} Rg7 {[%emt 0:02:21]} 37. Kh1 {[%emt 0:00:59]} Kh8 {[%emt 0:01:47]} 38. Rf1 {[%emt 0:07:19]} Rfg8 {[%emt 0:00:30]} 39. g3 {[%emt 0:00:30]} Bd7 {[%emt 0:00:30]} 40. Raa1 {[%emt 0:00:30]} Qc8 {[%emt 0:00:30]} 41. Rad1 {[%emt 0:00:30]} f4 {[%emt 0:00:30]} 42. Ne4 {[%emt 0:00:30]} f3 {[%emt 0:00:30]} 43. Qc2 {[%emt 0:00:30]} Bh3 {[%emt 0:00:30]} 44. Rfe1 {[%emt 0:00:30]} Bg2+ {[%emt 0:00:30]} 45. Kg1 {[%emt 0:00:30]} Qh3 {[%emt 0:00:30]} 1/2-1/2

[Event "5th Cesme Open 2017"]
[Site "Cesme"]
[Date "2017.06.16"]
[Round "7.21"]
[White "Kuyucuogullari, Cagakan"]
[Black "Barik, Ertunc Bahadir"]
[Result "1-0"]
[ECO "B06"]
[WhiteElo "1505"]
[BlackElo "1538"]
[Annotator "NA"]
[PlyCount "49"]
[EventType "swiss"]
[EventCountry "TUR"]
[SourceTitle "playchess.com"]
[Source "ChessBase"]
[SourceQuality "1"]
[TimeControl "5400+30"]

1. d4 {[%emt 0:01:30] 8} g6 {[%emt 0:01:00] 8} 2. e4 {[%emt 0:01:30] 8} Bg7 {[%emt 0:00:00] 8} 3. Nf3 {[%emt 0:00:00] 8} d6 {[%emt 0:00:00] 8} 4. Nc3 {[%emt 0:03:00] 8} Nd7 {[%emt 0:00:30] [%clk 1:31]} 5. Bc4 {[%emt 0:03:30] %} Ngf6 {[%emt 0:00:30] %} 6. Bxf7+ {[%emt 0:05:30] %} Kxf7 {[%emt 0:00:30] %} 7. Ng5+ {[%emt 0:00:30] %} Kg8 {[%emt 0:00:30] %} 8. Ne6 {[%emt 0:01:30]} Qe8 {[%emt 0:00:30]} 9. Nxc7 {[%emt 0:01:30]} Qf7 {[%emt 0:01:30]} 10. Nxa8 {[%emt 0:03:30]} e5 {[%emt 0:00:00]} 11. Be3 {[%emt 0:04:30]} h5 {[%emt 0:01:00]} 12. h3 {[%emt 0:01:30]} exd4 {[%emt 0:02:30]} 13. Bxd4 {[%emt 0:00:30]} Nc5 {[%emt 0:00:30]} 14. Bxc5 {[%emt 0:10:30]} dxc5 {[%emt 0:00:30]} 15. Qd6 {[%emt 0:00:30]} Be6 {[%emt 0:03:30]} 16. Nc7 {[%emt 0:01:30]} Bc4 {[%emt 0:01:30]} 17. O-O-O {[%emt 0:26:30]} Bxa2 {[%emt 0:02:30]} 18. b3 {[%emt 0:03:30]} Kh7 {[%emt 0:06:30]} 19. e5 {[%emt 0:09:33] k} Ne4 {[%emt 0:17:30] 7} 20. Nxe4 {[%emt 0:00:30]} Qf4+ {[%emt 0:00:30] 5} 21. Nd2 {[%emt 0:03:00]} Bxe5 {[%emt 0:00:30] ]} 22. Qe7+ {[%emt 0:06:36]} Kh6 {[%emt 0:00:30] 1} 23. Ne6 {[%emt 0:01:24] [%clk 0:09.10]} Qb4 {[%emt 0:04:30]} 24. Qg5+ {[%emt 0:00:47]} Kh7 {[%emt 0:00:30]} 25. Qxe5 {[%emt 0:00:30]} 1-0

[Event "5th Cesme Open 2017"]
[Site "Cesme"]
[Date "2017.06.16"]
[Round "7.22"]
[White "Tokat, Nehir"]
[Black "Ekici, Caner"]
[Result "1-0"]
[ECO "D46"]
[WhiteElo "1493"]
[BlackElo "1681"]
[Annotator "NA"]
[PlyCount "129"]
[EventType "swiss"]
[EventCountry "TUR"]
[SourceTitle "playchess.com"]
[Source "ChessBase"]
[SourceQuality "1"]
[TimeControl "5400+30"]

1. d4 {[%emt 0:00:30] .1} d5 {[%emt 0:01:00] .1} 2. c4 {[%emt 0:00:00] .1} c6 {[%emt 0:00:00] .1} 3. e3 {[%emt 0:00:00] .1} Nf6 {[%emt 0:00:00] .1} 4. Nc3 {[%emt 0:00:00] .1} e6 {[%emt 0:00:00] .} 5. Bd3 {[%emt 0:00:00] ..} Be7 {[%emt 0:00:00] ..} 6. Nf3 {[%emt 0:00:30] ..} O-O {[%emt 0:00:30] ..} 7. O-O {[%emt 0:00:00] ..} Nbd7 {[%emt 0:00:30] ..} 8. e4 {[%emt 0:00:00] [%clk 1:33]9} dxe4 {[%emt 0:09:30] c[} 9. Nxe4 {[%emt 0:00:30]} c5 {[%emt 0:01:30]} 10. Nxf6+ {[%emt 0:09:30]} Nxf6 {[%emt 0:00:30]} 11. Bc2 {[%emt 0:00:30]} b6 {[%emt 0:03:30]} 12. Bg5 {[%emt 0:03:30]} Bb7 {[%emt 0:01:30]} 13. dxc5 {[%emt 0:05:30]} bxc5 {[%emt 0:06:30]} 14. Qe2 {[%emt 0:02:30] ]} Qc7 {[%emt 0:00:30] ]} 15. Rfd1 {[%emt 0:05:30] ]} Rad8 {[%emt 0:01:30] ]} 16. Bh4 {[%emt 0:04:30] ]} Qf4 {[%emt 0:09:30] ]} 17. Bg3 {[%emt 0:05:30] ]} Bxf3 {[%emt 0:04:30] ]} 18. gxf3 {[%emt 0:00:30] ]} Qh6 {[%emt 0:01:30] ]} 19. Qe3 {[%emt 0:05:30]} Qxe3 {[%emt 0:07:30] ]} 20. fxe3 {[%emt 0:00:00] ]} Rxd1+ {[%emt 0:02:30] ]} 21. Rxd1 {[%emt 0:00:00] ]} Rd8 {[%emt 0:00:00] ]} 22. Bc7 {[%emt 0:01:30] ]} Rxd1+ {[%emt 0:01:00] ]} 23. Bxd1 {[%emt 0:00:30] ]} Nd7 {[%emt 0:00:30] ]} 24. Ba4 {[%emt 0:00:30] ]} Nb6 {[%emt 0:00:00] ]} 25. Bb5 {[%emt 0:00:30] ]} Nc8 {[%emt 0:02:00] ]} 26. Ba6 {[%emt 0:00:30] ]} Bd6 {[%emt 0:00:30]} 27. Bxd6 {[%emt 0:02:30] ]} Nxd6 {[%emt 0:00:00] ]} 28. a3 {[%emt 0:00:30] ]} Kf8 {[%emt 0:00:00] ]} 29. b4 {[%emt 0:00:30] ]} cxb4 {[%emt 0:00:00] ]} 30. axb4 {[%emt 0:00:30] ]} Ke8 {[%emt 0:01:00] ]} 31. e4 {[%emt 0:04:30] ]} Kd8 {[%emt 0:00:00] ]} 32. Kf2 {[%emt 0:01:30] ]} Kc7 {[%emt 0:01:00] ]} 33. c5 {[%emt 0:01:30] ]} Ne8 {[%emt 0:00:30] ]} 34. Ke3 {[%emt 0:01:30] ]} Kc6 {[%emt 0:00:30] ]} 35. Kd4 {[%emt 0:01:30] ]} Nc7 {[%emt 0:01:30] ]} 36. Bc4 {[%emt 0:01:30]} a6 {[%emt 0:02:30] ]} 37. f4 {[%emt 0:02:30] ]} f6 {[%emt 0:03:30] ]} 38. h4 {[%emt 0:02:30] [%clk 0:30]} h6 {[%emt 0:08:30] [} 39. h5 {[%emt 0:10:30] [} Kd7 {[%emt 0:00:30]} 40. f5 {[%emt 0:00:30]} e5+ {[%emt 0:00:30]} 41. Kc3 {[%emt 0:00:30]} Kc6 {[%emt 0:00:30]} 42. Kb3 {[%emt 0:00:30]} a5 {[%emt 0:00:30]} 43. Be2 {[%emt 0:01:30] [%clk 0:27]} axb4 {[%emt 0:04:30]} 44. Kxb4 {[%emt 0:02:30]} Kb7 {[%emt 0:00:30]} 45. Kc4 {[%emt 0:00:30]} Kc6 {[%emt 0:00:30]} 46. Bd1 {[%emt 0:00:30]} Kb7 {[%emt 0:06:30]} 47. Bb3 {[%emt 0:02:30]} Kc6 {[%emt 0:04:30]} 48. Ba4+ {[%emt 0:00:00]} Kb7 {[%emt 0:00:00]} 49. Kb4 {[%emt 0:04:00]} Na6+ {[%emt 0:08:44]} 50. Kb5 {[%emt 0:00:30]} Nc7+ {[%emt 0:00:01]} 51. Ka5 {[%emt 0:00:00]} Na6 {[%emt 0:00:59]} 52. c6+ {[%emt 0:00:00]} Ka7 {[%emt 0:00:01]} 53. Kb5 {[%emt 0:01:30]} Nc7+ {[%emt 0:00:28]} 54. Kc5 {[%emt 0:00:00]} Ne8 {[%emt 0:05:48]} 55. Bb3 {[%emt 0:01:00]} Kb8 {[%emt 0:00:15]} 56. Bf7 {[%emt 0:00:30]} Nc7 {[%emt 0:00:01]} 57. Kd6 {[%emt 0:00:30]} Nb5+ {[%emt 0:00:10]} 58. Kd7 {[%emt 0:01:30]} Nc7 {[%emt 0:00:10]} 59. Bc4 {[%emt 0:00:00]} Na8 {[%emt 0:00:11]} 60. Ke8 {[%emt 0:02:50]} Nb6 {[%emt 0:00:16]} 61. Bb5 {[%emt 0:00:24]} Nc8 {[%emt 0:00:16]} 62. Kf8 {[%emt 0:00:44]} Nd6 {[%emt 0:00:02]} 63. Bd3 {[%emt 0:00:13]} Kc7 {[%emt 0:00:17]} 64. Kxg7 {[%emt 0:00:06]} Ne8+ {[%emt 0:00:18]} 65. Kxh6 {[%emt 0:00:31]} 1-0

[Event "5th Cesme Open 2017"]
[Site "Cesme"]
[Date "2017.06.16"]
[Round "7.23"]
[White "Daloglu, Berkay"]
[Black "Ulas, Uygar"]
[Result "1-0"]
[ECO "A30"]
[WhiteElo "1659"]
[BlackElo "1518"]
[Annotator "NA RC"]
[PlyCount "135"]
[EventType "swiss"]
[EventCountry "TUR"]
[SourceTitle "playchess.com"]
[Source "ChessBase"]
[SourceQuality "1"]
[TimeControl "5400+30"]

1. Nf3 {[%emt 0:00:30] 0]} Nf6 {[%emt 0:06:00] 0]} 2. g3 {[%emt 0:00:00] 0]} g6 {[%emt 0:00:00] 0} 3. b3 {[%emt 0:00:00] 00} b6 {[%emt 0:00:00] 00} 4. Bg2 {[%emt 0:00:30] 00} Bb7 {[%emt 0:00:30] 00} 5. Bb2 {[%emt 0:00:30] 00} Bg7 {[%emt 0:00:30] [%clk 1:25]]} 6. c4 {[%emt 0:00:30] %%} O-O {[%emt 0:01:30]} 7. O-O {[%emt 0:00:30]} c5 {[%emt 0:00:30]} 8. Qc2 {[%emt 0:04:30]} Qc7 {[%emt 0:00:00]} 9. Nc3 {[%emt 0:04:30]} a6 {[%emt 0:02:00]} 10. e3 {[%emt 0:04:30]} Nc6 {[%emt 0:00:30]} 11. d4 {[%emt 0:02:30]} cxd4 {[%emt 0:04:30]} 12. exd4 {[%emt 0:03:30]} e6 {[%emt 0:15:30]} 13. Rac1 {[%emt 0:25:30]} d5 {[%emt 0:12:30]} 14. cxd5 {[%emt 0:04:30]} exd5 {[%emt 0:01:30]} 15. Rfe1 {[%emt 0:08:30]} Qd6 {[%emt 0:01:30]} 16. Na4 {[%emt 0:05:30]} Bh6 {[%emt 0:08:30]} 17. Rcd1 {[%emt 0:03:30] [%clk 0:19.55] 0} Rfe8 {[%emt 0:20:30] %} 18. Nxb6 {[%emt 0:09:35] k} Nb4 {[%emt 0:00:30] 5} 19. Qc5 {[%emt 0:00:30]} Rad8 {[%emt 0:00:30] 5} 20. Rxe8+ {[%emt 0:00:30]} Nxe8 {[%emt 0:00:30] ] [%clk 0:22:0]} 21. Qxd6 {[%emt 0:08:44]} Nxd6 {[%emt 0:02:30]} 22. a3 {[%emt 0:04:25]} Nc2 {[%emt 0:01:30]} 23. Ne5 {[%emt 0:00:34]} Nf5 {[%emt 0:02:03]} 24. Na4 {[%emt 0:02:56]} f6 {[%emt 0:03:27]} 25. Ng4 {[%emt 0:00:14]} Bg7 {[%emt 0:00:04]} 26. Nc5 {[%emt 0:00:46]} Bc6 {[%emt 0:01:08]} 27. Ne6 {[%emt 0:02:24]} Rd6 {[%emt 0:01:27]} 28. Nxg7 {[%emt 0:00:44]} Kxg7 {[%emt 0:00:21]} 29. h4 {[%emt 0:01:12]} Re6 {[%emt 0:02:53]} 30. Nh2 {[%emt 0:01:39]} Re1+ {[%emt 0:05:07]} 31. Rxe1 {[%emt 0:00:03]} Nxe1 {[%emt 0:00:03]} 32. Bf1 {[%emt 0:00:47]} Bb5 {[%emt 0:02:17]} 33. Bxb5 {[%emt 0:00:32]} axb5 {[%emt 0:00:03]} 34. Kf1 {[%emt 0:00:38]} Nd3 {[%emt 0:00:04]} 35. Bc3 {[%emt 0:00:32]} Nc1 {[%emt 0:00:18]} 36. b4 {[%emt 0:01:06]} Nd6 {[%emt 0:00:03]} 37. Ng4 {[%emt 0:00:17]} Ne4 {[%emt 0:00:44]} 38. Be1 {[%emt 0:00:42]} Nb3 {[%emt 0:00:13]} 39. Ne3 {[%emt 0:00:15]} Nxd4 {[%emt 0:00:14]} 40. Nxd5 {[%emt 0:00:38]} Nc2 {[%emt 0:00:07]} 41. f3 {[%emt 0:00:41]} Nd6 {[%emt 0:02:05]} 42. Bc3 {[%emt 0:00:12]} Nxa3 {[%emt 0:00:05]} 43. Nxf6 {[%emt 0:00:45]} Kf7 {[%emt 0:03:22]} 44. Nxh7 {[%emt 0:00:15]} Nb1 {[%emt 0:00:14]} 45. Be1 {[%emt 0:00:24]} Na3 {[%emt 0:02:03]} 46. Bc3 {[%emt 0:00:28]} Nb1 {[%emt 0:00:02]} 47. Ng5+ {[%emt 0:00:09]} Ke7 {[%emt 0:00:11]} 48. Bd4 {[%emt 0:00:59]} Nf5 {[%emt 0:00:47]} 49. Bc5+ {[%emt 0:00:05]} Kd7 {[%emt 0:00:18]} 50. Ne4 {[%emt 0:00:48]} Kc6 {[%emt 0:01:05]} 51. Ke2 {[%emt 0:00:00]} Kd5 {[%emt 0:00:24]} 52. Kd3 {[%emt 0:00:18]} Kc6 {[%emt 0:00:54]} 53. Bf2 {[%emt 0:00:48]} Na3 {[%emt 0:00:55]} 54. g4 {[%emt 0:00:35]} Ne7 {[%emt 0:00:06]} 55. h5 {[%emt 0:00:38]} gxh5 {[%emt 0:00:59]} 56. gxh5 {[%emt 0:00:22]} Nf5 {[%emt 0:01:09]} 57. Ng3 {[%emt 0:00:28]} Nh6 {[%emt 0:00:48]} 58. Be3 {[%emt 0:00:11]} Nf7 {[%emt 0:00:19]} 59. h6 {[%emt 0:00:52]} Nc4 {[%emt 0:00:04]} 60. Nf5 {[%emt 0:00:55]} Nce5+ {[%emt 0:01:18]} 61. Ke4 {[%emt 0:00:17]} Ng6 {[%emt 0:00:42]} 62. Nd4+ {[%emt 0:00:30]} Kb6 {[%emt 0:00:21]} 63. Kf5 {[%emt 0:00:26]} Nfh8 {[%emt 0:01:08]} 64. Kf6 {[%emt 0:00:54]} Ka6 {[%emt 0:00:33]} 65. f4 {[%emt 0:00:21]} Nf8 {[%emt 0:00:28]} 66. f5 {[%emt 0:00:25]} Nd7+ {[%emt 0:00:32]} 67. Kg7 {[%emt 0:00:28]} Ne5 {[%emt 0:00:30]} 68. Kxh8 {[%emt 0:00:21]} 1-0

[Event "5th Cesme Open 2017"]
[Site "Cesme"]
[Date "2017.06.16"]
[Round "7.24"]
[White "Ersoy, Bora"]
[Black "Danaci, Turhan Can"]
[Result "1/2-1/2"]
[ECO "D58"]
[WhiteElo "1675"]
[BlackElo "1588"]
[Annotator "NA RC"]
[PlyCount "114"]
[EventType "swiss"]
[EventCountry "TUR"]
[SourceTitle "playchess.com"]
[Source "ChessBase"]
[SourceQuality "1"]
[TimeControl "5400+30"]

1. d4 {[%emt 0:00:30] 9]} d5 {[%emt 0:06:00] 9]} 2. c4 {[%emt 0:00:00] 9]} e6 {[%emt 0:00:30] 9]} 3. Nf3 {[%emt 0:00:00] [%clk 1:30]5} Nf6 {[%emt 0:03:30] %%} 4. Bg5 {[%emt 0:01:30] %%} Be7 {[%emt 0:00:30] %%} 5. e3 {[%emt 0:00:30] %%} Nbd7 {[%emt 0:03:30] %%} 6. Nc3 {[%emt 0:00:30] %} h6 {[%emt 0:01:30] ]} 7. Bh4 {[%emt 0:00:00] ]} O-O {[%emt 0:00:30] ]} 8. Bd3 {[%emt 0:00:00]} dxc4 {[%emt 0:06:30] ]} 9. Bxc4 {[%emt 0:02:30] ]} b6 {[%emt 0:00:30] ]} 10. O-O {[%emt 0:00:30] ]} Bb7 {[%emt 0:00:30] ]} 11. Be2 {[%emt 0:00:30] ]} Ne4 {[%emt 0:12:30] ]} 12. Bg3 {[%emt 0:07:30] ]} Nxg3 {[%emt 0:02:30] ]} 13. hxg3 {[%emt 0:01:30] ]} c5 {[%emt 0:02:30] ]} 14. Qb3 {[%emt 0:03:30] ]} cxd4 {[%emt 0:08:30] ]} 15. exd4 {[%emt 0:00:30] ]} Nf6 {[%emt 0:01:30] ]} 16. Rfd1 {[%emt 0:03:30] ]} Nd5 {[%emt 0:03:30] ]} 17. Rac1 {[%emt 0:04:30] ]} Rc8 {[%emt 0:06:30]} 18. Bc4 {[%emt 0:12:30] ]} Bf6 {[%emt 0:16:30] [%clk 0:15.10] 0} 19. a4 {[%emt 0:29:30] c} Nxc3 {[%emt 0:07:20] k} 20. bxc3 {[%emt 0:00:30] 0} Bd5 {[%emt 0:00:30]} 21. Bxd5 {[%emt 0:00:30] 0} exd5 {[%emt 0:00:30]} 22. Re1 {[%emt 0:02:30] 0 [%clk 0:29:0]} Qd7 {[%emt 0:08:02]} 23. Qb5 {[%emt 0:00:00]} Qxb5 {[%emt 0:00:30]} 24. axb5 {[%emt 0:00:00]} Rc4 {[%emt 0:00:39]} 25. Ne5 {[%emt 0:10:31]} Bxe5 {[%emt 0:00:42]} 26. Rxe5 {[%emt 0:00:03]} Rd8 {[%emt 0:00:34]} 27. Kf1 {[%emt 0:02:10]} Kf8 {[%emt 0:03:29]} 28. Ke2 {[%emt 0:06:26]} f6 {[%emt 0:01:31]} 29. Re3 {[%emt 0:00:19]} Rdc8 {[%emt 0:00:34]} 30. Kd2 {[%emt 0:00:38]} Ra4 {[%emt 0:00:37]} 31. Rc2 {[%emt 0:01:49]} Ra1 {[%emt 0:00:47]} 32. Ke2 {[%emt 0:00:52]} Rb1 {[%emt 0:00:14]} 33. Kf3 {[%emt 0:01:54]} Rxb5 {[%emt 0:00:12]} 34. Kf4 {[%emt 0:00:27]} Kf7 {[%emt 0:01:14]} 35. Rce2 {[%emt 0:00:03]} Rc7 {[%emt 0:00:15]} 36. Re8 {[%emt 0:00:15]} a5 {[%emt 0:00:45]} 37. Kf5 {[%emt 0:01:09]} Rb3 {[%emt 0:01:23]} 38. Rd8 {[%emt 0:01:16]} Rb5 {[%emt 0:00:38]} 39. Ree8 {[%emt 0:00:25]} g6+ {[%emt 0:00:31]} 40. Kf4 {[%emt 0:00:16]} Re7 {[%emt 0:00:27]} 41. Rf8+ {[%emt 0:00:13]} Ke6 {[%emt 0:00:08]} 42. Rc8 {[%emt 0:00:22]} Rb2 {[%emt 0:01:51]} 43. Kf3 {[%emt 0:02:34]} a4 {[%emt 0:00:34]} 44. Rc6+ {[%emt 0:01:17]} Kd7 {[%emt 0:00:13]} 45. Rfxf6 {[%emt 0:00:12]} b5 {[%emt 0:00:46]} 46. Ra6 {[%emt 0:00:49]} Rb3 {[%emt 0:00:21]} 47. Rxg6 {[%emt 0:00:39]} Rxc3+ {[%emt 0:00:16]} 48. Kg4 {[%emt 0:00:06]} a3 {[%emt 0:00:39]} 49. Ra7+ {[%emt 0:00:19]} Ke8 {[%emt 0:00:07]} 50. Rxh6 {[%emt 0:00:15]} Rxa7 {[%emt 0:00:39]} 51. Rh8+ {[%emt 0:00:05]} Kd7 {[%emt 0:00:24]} 52. Rh7+ {[%emt 0:00:30]} Kc6 {[%emt 0:00:00]} 53. Rxa7 {[%emt 0:00:00]} Kb6 {[%emt 0:00:57]} 54. Ra8 {[%emt 0:00:06]} Kb7 {[%emt 0:00:50]} 55. Ra5 {[%emt 0:00:32]} Kb6 {[%emt 0:00:43]} 56. Ra8 {[%emt 0:00:21]} Kb7 {[%emt 0:00:34]} 57. Ra5 {[%emt 0:00:23]} Kb6 {[%emt 0:00:17]} 1/2-1/2